Cogmind - Beta 10 @@@ ROGUE MODE // 2020.09.18 @ 09:07:57 Player: sentrybuster Result: Destroyed self Performance ------------- Evolutions (1) 500 Regions Visited (4) 800 Robots Destroyed (32) 160 Value Destroyed (608) 608 Prototype IDs (6) 120 Alien Tech Used (0) 0 Bonus (350) 350 TOTAL SCORE: 2538 Bonus ------- Follower Combat Kills 50 Aligned with FarCom 300 Cogmind --------- Core Integrity 0/400 Matter 227/300 Energy 78/100 System Corruption 15% Temperature Cool (158) Movement Core (550) Ox10 Location -9/Exiles Parts ------- > --- POWER (1) -------- (None) > --- PROPULSION (3) --- (None) > --- UTILITY (3) ------ High-capacity Storage Unit > --- WEAPON (2) ------- (None) > --- INVENTORY (12) --- Ion Engine Light Ion Engine Reinforced Deuterium Engine Fission Core Light Fission Core Wheel Large Storage Unit Sensor Array Signal Interpreter Beam Cannon Heavy Assault Rifle Rocket Launcher Peak State ------------ > --- POWER ------------ Reinforced Ion Engine > --- PROPULSION ------- Aluminum Leg Aluminum Leg Aluminum Leg > --- UTILITY ---------- Heat Sink High-capacity Storage Unit Armor Integrity Analyzer > --- WEAPON ----------- YOLO Cannon > --- INVENTORY -------- Ion Engine Light Ion Engine Reinforced Deuterium Engine Fission Core Light Fission Core Wheel Large Storage Unit Sensor Array Signal Interpreter Guided Plasma Cannon Rocket Launcher [Rating: 32] Favorites ----------- Power Heavy Ion Engine Engine Heavy Ion Engine Propulsion Light Treads Treads Light Treads Leg Aluminum Leg Wheel Wheel Utility High-capacity Storage Unit Device Heat Sink Storage High-capacity Storage Unit Processor Armor Integrity Analyzer Weapon Improved Assault Rifle Energy Gun EM Pulse Gun Energy Cannon Particle Cannon Ballistic Gun Improved Assault Rifle Build | -11 -10 -9 -9 -9 ------- Run | Scr Mat Mat Min Exi Slots Evolved 2 | . . 2 . . Power . | . . . . . Propulsion 1 | . . 1 . . Utility 1 | . . 1 . . Weapon . | . . . . . Parts Attached 32 | 7 3 16 . 6 Power 3 | 1 . 2 . . Engine 3 | 1 . 2 . . Core . | . . . . . Reactor . | . . . . . Propulsion 8 | 2 . 6 . . Treads 3 | . . 3 . . Leg 3 | . . 3 . . Wheel 2 | 2 . . . . Hover . | . . . . . Flight . | . . . . . Utility 7 | 1 3 3 . . Device 3 | . 1 2 . . Storage 3 | 1 2 . . . Processor 1 | . . 1 . . Hackware . | . . . . . Protection . | . . . . . Artifact . | . . . . . Weapon 14 | 3 . 5 . 6 Energy Gun 2 | 2 . . . . Energy Cannon 9 | . . 3 . 6 Ballistic Gun 3 | 1 . 2 . . Ballistic Cannon . | . . . . . Launcher . | . . . . . Special Weapon . | . . . . . Impact Weapon . | . . . . . Slashing Weapon . | . . . . . Piercing Weapon . | . . . . . Special Melee Weapon . | . . . . . Unidentified Prototypes 5 | . . 3 . 2 Parts Lost 13 | . . 6 . 7 Power 2 | . . 1 . 1 Propulsion 6 | . . 3 . 3 Utility 4 | . . 2 . 2 Weapon 1 | . . . . 1 Highest Loss Streak 7 | . . 4 . 7 Average Slot Usage (%) 92 | . 98 90 100 93 Engine 11 | . 14 10 11 11 Treads 12 | . . 19 . . Leg 11 | . . 4 33 32 Wheel 4 | . 28 2 . . Device 15 | . 12 17 11 10 Storage 11 | . 14 11 11 11 Processor 4 | . . 1 11 11 Energy Gun 4 | . 28 1 . . Energy Cannon 3 | . . 4 . 3 Ballistic Gun 14 | . . 16 22 14 Naked Turns . | . . . . . Heaviest Build 61 | 12 41 49 49 61 Greatest Support 60 | 20 20 60 30 30 Greatest Overweight (x) 2 | . 2 2 1 2 Average Overweight (x) . | . . . 1 1 Largest Inventory Capacity 12 | 6 12 12 12 12 Average Capacity 11 | 4 8 12 12 12 Most Carried 12 | 4 5 12 9 12 Average Carried 8 | 2 4 9 9 11 Final Capacity 12 | 6 12 12 12 12 Final Carried 12 | 4 5 9 9 12 Class Distribution -------------------- 50% | Mutant 49% | Scavenger-Mutant Dominant Class ---------------- Mutant | -10/Materials Scavenger-Mutant | -9/Materials Scavenger-Mutant | -9/Mines Scavenger-Mutant | -9/Exiles Resources | -11 -10 -9 -9 -9 ----------- Run | Scr Mat Mat Min Exi Matter Collected 776 | 212 45 432 87 . Remotely . | . . . . . Salvage Created 919 | . 105 761 41 12 Parts 57 | . 9 46 2 . Haulers Intercepted 4 | . 1 3 . . Recyclers Shooed 1 | . . 1 . . Parts Field Recycled . | . . . . . Retrieved Matter . | . . . . . Parts Self-Destructed . | . . . . . Prevented . | . . . . . Kills | -11 -10 -9 -9 -9 ------- Run | Scr Mat Mat Min Exi Combat Hostiles Destroyed 24 | . 3 14 1 6 Guns 14 | . 3 10 1 . Cannons 7 | . . 4 . 3 AOE 3 | . . . . 3 Classes Destroyed 9 | . 2 6 . 1 Worker 1 | . . 1 . . Hauler 4 | . 1 3 . . Operator 1 | . . 1 . . Watcher 2 | . . 2 . . Swarmer 6 | . 3 3 . . Grunt 9 | . . 8 1 . Brawler 1 | . . 1 . . Sentry 2 | . . 2 . . Assembled 6 | . . . . 6 Best Kill Streak 6 | . 3 3 1 6 Combat Bots Only 6 | . 3 3 1 6 Max Kills in Single Turn 2 | . 1 1 1 2 Gunslinging . | . . . . . Exploded 2 | . . . . 2 Melee . | . . . . . Uniques/NPCs Destroyed . | . . . . . Combat | -11 -10 -9 -9 -9 -------- Run | Scr Mat Mat Min Exi Damage Taken 1786 | . 89 1006 23 668 Core 375 | . 28 149 . 198 Absorbed by Shields . | . . . . . Core Remaining (%) 94 | 100 88 . . . Volleys Fired 100 | . 14 72 5 9 Largest 2 | . 2 2 2 1 Hottest 100 | . 80 91 46 100 Shots Fired 183 | . 28 136 10 9 Gun 149 | . 28 111 10 . Cannon 34 | . . 25 . 9 Launcher . | . . . . . Special . | . . . . . Kinetic 107 | . . 97 10 . Thermal 55 | . 14 32 . 9 Explosive . | . . . . . Electromagnetic 21 | . 14 7 . . Robot Hit Streak 19 | . 4 19 12 2 Robot Miss Streak 5 | . 5 3 2 2 Penetration Max . | . . . . . Secondary Targets 3 | . 1 1 1 . Max Gunslinging Chain 1 | . 1 1 1 . Shots Hit Robots 116 | . 15 91 7 3 Core Hits 45 | . 5 34 2 4 Critical Hits . | . . . . . Critical Kills . | . . . . . Critical Parts Destroyed . | . . . . . Melee Attacks . | . . . . . Impact . | . . . . . Slashing . | . . . . . Piercing . | . . . . . Sneak Attacks . | . . . . . Combat Hostiles . | . . . . . Follow-up Attacks . | . . . . . Damage Inflicted 2576 | . 167 1440 87 882 Guns 1338 | . 167 1084 87 . Cannons 646 | . . 285 . 361 Explosions 567 | . . 46 . 521 Melee . | . . . . . Ramming 25 | . . 25 . . Kinetic 1068 | . . 981 87 . Thermal 1289 | . 79 328 . 882 Explosive . | . . . . . Electromagnetic 194 | . 88 106 . . Impact . | . . . . . Slashing . | . . . . . Piercing . | . . . . . Highest Corruption 15 | . . 14 14 15 Average Corruption 9 | . . 5 14 14 Corruption Purged . | . . . . . Effects 39 | . . 13 10 16 Message Errors 6 | . . 1 2 3 Matter Fused 7 | . . 2 1 4 Heat Flow Errors 5 | . . 1 2 2 Energy Discharges 2 | . . 2 . . Data Loss (minor) 3 | . . 1 1 1 Data Loss (major) 2 | . . 1 1 . Misfires 1 | . . . . 1 Misdirections 6 | . . 2 2 2 Targeting Errors 5 | . . 1 1 3 Weapon Failures 2 | . . 2 . . Overload Shots . | . . . . . Overflow Damage 217 | . . 1 . 216 Projectiles 181 | . . . . 181 Explosions 36 | . . 1 . 35 Melee . | . . . . . Knockbacks . | . . . . . Impact . | . . . . . Kinetic . | . . . . . Secondary . | . . . . . Self-Inflicted Damage 175 | . . . . 175 Shots 2 | . . . . 2 Rammed 1 | . . 1 . . Targets Rammed 2 | . . 2 . . Kicked . | . . . . . Crushed 1 | . . 1 . . Highest Temperature 387 | . 90 387 269 183 Average Temperature 102 | . 28 141 119 88 Received Heat Transfer 354 | . . 342 12 . Siege Activations . | . . . . . Robots Corrupted . | . . . . . Combat Hostiles . | . . . . . Parts Fried 1 | . . 1 . . Impact Corruptions . | . . . . . Robots Melted . | . . . . . Combat Hostiles . | . . . . . Parts Melted . | . . . . . Heat Transferred 1613 | . 175 618 . 820 Parts Sabotaged . | . . . . . Parts Stolen . | . . . . . Parts Stripped . | . . . . . Power Chain Reactions . | . . . . . Missiles Intercepted . | . . . . . Alert | -11 -10 -9 -9 -9 ------- Run | Scr Mat Mat Min Exi Peak Influence 253 | . 97 253 141 . Initial 63 | . . 40 63 . Average 118 | . 59 134 112 . Maximum Alert Level 1 | . . 1 . . Low Security (%) 91 | 100 100 88 100 . Level 1 8 | . . 11 . . Level 2 . | . . . . . Level 3 . | . . . . . Level 4 . | . . . . . Level 5 . | . . . . . High Security . | . . . . . Max Security . | . . . . . Squads Dispatched 2 | . . 2 . . Investigation 1 | . . 1 . . Extermination . | . . . . . Reinforcement 1 | . . 1 . . Assault . | . . . . . Garrison . | . . . . . Intercept . | . . . . . Construction Impeded . | . . . . . Haulers Reinforced . | . . . . . Stealth | -11 -10 -9 -9 -9 --------- Run | Scr Mat Mat Min Exi Distress Signals . | . . . . . Communications Jammed . | . . . . . Distress Signals . | . . . . . Times Spotted 37 | . 5 22 2 8 Peak Tracking Total 10 | . 3 3 1 10 Tactical Retreats 2 | . . 2 . . Traps | -11 -10 -9 -9 -9 ------- Run | Scr Mat Mat Min Exi Traps Triggered 1 | . . 1 . . Indirectly . | . . . . . Trap Hack Attempts . | . . . . . Triggered . | . . . . . Disarmed . | . . . . . Reprogrammed . | . . . . . Reused . | . . . . . Traps Extracted . | . . . . . Installed . | . . . . . Triggered . | . . . . . Machines | -11 -10 -9 -9 -9 ---------- Run | Scr Mat Mat Min Exi Machines Disabled 7 | . . 2 . 5 Max in Single Turn 2 | . . 2 . 1 Machines Sabotaged . | . . . . . Garrisons Compromised . | . . . . . Overloaded Fab Kills . | . . . . . Fab Network Shutdowns . | . . . . . Hacking | -11 -10 -9 -9 -9 --------- Run | Scr Mat Mat Min Exi Machines Accessed 7 | . 2 3 1 1 Terminals 5 | . 1 3 1 . Fabricators . | . . . . . Repair Stations . | . . . . . Recycling Units 1 | . 1 . . . Scanalyzers . | . . . . . Garrison Access . | . . . . . Total Hacks 24 | . 5 13 5 1 Successful 14 | . 3 8 2 1 Failed 9 | . 2 4 3 . Catastrophic . | . . . . . Database Lockouts 1 | . . 1 . . Manual 24 | . 5 13 5 1 Terminals 21 | . 3 13 5 . Fabricators . | . . . . . Repair Stations . | . . . . . Recycling Units 2 | . 2 . . . Scanalyzers . | . . . . . Garrison Access . | . . . . . Terminal Hacks 5 | . 1 3 . 1 Record 1 | . . . . 1 Prototype ID Bank 1 | . . 1 . . Registered Components 2 | . . 2 . . Zone Layout 1 | . 1 . . . Fabricator Hacks . | . . . . . Repair Station Hacks . | . . . . . Recycling Unit Hacks . | . . . . . Scanalyzer . | . . . . . Garrison Access Hacks . | . . . . . Unauthorized Hacks 9 | . 2 5 2 . Terminals 8 | . 1 5 2 . Track 3 | . . 2 1 . Botnet 5 | . 1 3 1 . Fabricators . | . . . . . Repair Stations . | . . . . . Recycling Units 1 | . 1 . . . Monitor 1 | . 1 . . . Scanalyzers . | . . . . . Garrison Access . | . . . . . Data Cores Recovered . | . . . . . Used . | . . . . . Hacking Detections 4 | . 1 2 1 . Full Trace Events 1 | . . 1 . . Feedback Events . | . . . . . Feedback Blocked . | . . . . . Robot Schematics Acquired . | . . . . . Robots Built . | . . . . . Matter . | . . . . . Time . | . . . . . Total Robot Build Rating . | . . . . . Part Schematics Acquired . | . . . . . Parts Built . | . . . . . Matter . | . . . . . Time . | . . . . . Total Part Build Rating . | . . . . . Parts Repaired . | . . . . . Time . | . . . . . Parts Recycled . | . . . . . Recycled Matter . | . . . . . Retrieved Matter . | . . . . . Retrieved Components . | . . . . . Parts Scanalyzed . | . . . . . Part Schematics Acquired . | . . . . . Parts Damaged . | . . . . . Bothacking | -11 -10 -9 -9 -9 ------------ Run | Scr Mat Mat Min Exi Used RIF Installer . | . . . . . Robots Hacked . | . . . . . Non-combat . | . . . . . Combat . | . . . . . Robot Hacks Applied . | . . . . . Relay Couplers Released . | . . . . . Robots Rewired . | . . . . . Allies Hacked . | . . . . . Hacks Repelled . | . . . . . Allies | -11 -10 -9 -9 -9 -------- Run | Scr Mat Mat Min Exi Total Allies 2 | . . . 2 . Largest Group 2 | . . . 2 2 Highest-Rated Group 48 | . . . 48 48 Highest-Rated Ally 31 | . . . 31 31 Total Orders . | . . . . . Ally Attacks 7 | . . . 7 . Total Damage 150 | . . . 150 . Kills 2 | . . . 2 . Allies Corrupted . | . . . . . Allies Melted . | . . . . . Intel | -11 -10 -9 -9 -9 ------- Run | Scr Mat Mat Min Exi Robot Analysis Total . | . . . . . Derelict Logs Recovered . | . . . . . Drone Launches . | . . . . . Drone Recoveries . | . . . . . Exploration | -11 -10 -9 -9 -9 ------------- Run | Scr Mat Mat Min Exi Turns Passed 1801 | 45 201 1097 134 324 Spaces Moved 913 | 39 162 474 71 167 Core 1 | 1 . . . . Treads 340 | . . 340 . . Legs 329 | . . 91 71 167 Wheels 243 | 38 162 43 . . Hover . | . . . . . Flight . | . . . . . Fastest Speed 50 | 50 80 100 150 150 Average Speed 143 | 79 85 162 150 156 Slowest Speed 200 | 80 100 200 150 180 Overloaded Moves . | . . . . . Propulsion Burnouts . | . . . . . Robots Hopped . | . . . . . Cave-ins Triggered . | . . . . . Exploration Rate (%) 26 | 3 27 35 25 41 Regions Visited 4 Branch Regions 2 Pre-discovered Areas . | . . . . . Known Exits Taken . | . . . . . Unknown Exits Taken 4 | 1 1 1 1 . Scrap Searched . | . . . . . Spaces Dug . | . . . . . Terrain Destroyed 58 | . . . . 58 Melee . | . . . . . Projectile 2 | . . . . 2 AOE 56 | . . . . 56 Terrain Rammed . | . . . . . Walls Destroyed . | . . . . . Machines Disabled . | . . . . . Actions | -11 -10 -9 -9 -9 --------- Run | Scr Mat Mat Min Exi Total 1203 | 49 194 661 89 210 Wait 120 | . 15 81 14 10 Move 909 | 38 161 473 70 167 Hop . | . . . . . Pick Up 14 | 3 . 5 . 6 Fast Attach 25 | 7 1 12 . 5 Attach 5 | . . 4 . 1 Detach 10 | 1 . 6 . 3 Swap 2 | . 2 . . . Drop 15 | . 1 5 . 9 Fire 100 | . 14 72 5 9 Melee . | . . . . . Ram 1 | . . 1 . . Kick . | . . . . . Crush 2 | . . 2 . . Escape Stasis . | . . . . . Rewire . | . . . . . Trap . | . . . . . Miscellaneous . | . . . . . Route ------- -11/Scrapyard -10/Materials -9/Materials -9/Mines -9/Exiles History --------- Turn | Location | Event 7 | -11/Scrapyard | Discovered new exit (range 15) 46 | -11/Scrapyard | Entered Materials 239 | -10/Materials | Discovered new exit (range 11) 247 | -10/Materials | Entered another Materials area 247 | -9/Materials | Evolved 2 slots: Propulsion x1, Utility x1 387 | -9/Materials | Build established: Mutant 558 | -9/Materials | Central database locked down 1054 | -9/Materials | Build established: Scavenger-Mutant 1147 | -9/Materials | System corruption reached 10% 1207 | -9/Materials | Lost 4 parts (1p1n2u) 1320 | -9/Materials | Discovered new exit (range 15) 1344 | -9/Materials | Entered Mines 1460 | -9/Mines | Deemed a non-threat by the Exiles lab entrance 1461 | -9/Mines | Discovered new exit (range 5) 1478 | -9/Mines | Entered Exiles 1478 | -9/Exiles | Accompanied by 2 allies 1508 | -9/Exiles | Led the pair of lost Derelicts to a safe place 1536 | -9/Exiles | Met 8R-AWN 1560 | -9/Exiles | Met EX-HEX 1608 | -9/Exiles | Met EX-BIN 1638 | -9/Exiles | Aligned with FarCom system 1640 | -9/Exiles | Given EX-Vault access code 1679 | -9/Exiles | Opened EX-Vault 1687 | -9/Exiles | Found Prototype Energy Cannon 1687 | -9/Exiles | Identified YOLO Cannon 1702 | -9/Exiles | Found Prototype Energy Cannon 1704 | -9/Exiles | Identified Gui. Plasma Cannon 1754 | -9/Exiles | Attacked by the Exiles 1775 | -9/Exiles | Core integrity fell below 50% 1802 | -9/Exiles | Destroyed self Last Messages --------------- 01795_ HV Slug penetrates FarCom Aligner. 01797_ Penetrated by HV Slug. 01797_ HV Slug penetrates FarCom Aligner. 01797_ Penetrated by HV Slug. 01797_ HV Slug penetrates FarCom Aligner. 01799_ Penetrated by HV Slug. 01799_ HV Slug penetrates FarCom Aligner. 01799_ HV Slug penetrates BIN's Workstation. 01799_ HV Slug penetrates FarCom Aligner. 01801_ Penetrated by HV Slug. 01801_ HV Slug penetrates FarCom Aligner. 01801_ Penetrated by HV Slug. 01801_ Critical hit. 01801_ Aluminum Leg destroyed. 01801_ HV Slug penetrates FarCom Aligner. 01802_ YOLO Cannon suddenly explodes. 01802_ Armor Integrity Analyzer destroyed. 01802_ Rnf. Ion Engine destroyed. 01802_ Aluminum Leg destroyed. 01802_ Core damaged (-78). Map ----- +----------------------------------------------------+ | ????????????????## ##????????????????????????? | | ????????????????#X #?????????????????????????? | | ????????????????## #?????????????????????????? | | ?????????????????# #?????????????????????????? | | ?????????????????# #???###???????????????????? | | ?????????????????# #??"""""??????????????????? | | ?????????????????# ## """??????????????????? | | ?????????????????# X""??????????????????? | | ?????????????????# ## """??????????????????? | | ???????????####??# #??"""""??????????????????? | | ???????????"""""?# #???###???????????????????? | | ??????????"""" ## #?????????????????????????? | | ?????????#""X" #?????????????????????????? | | ?????????#" #?????????????????????????? | | ?????????#" ## #?????????????????????????? | | ?????????#""""""?# #?#########???????????????? | | ??????????#"###??# #?#" """""#???????????????? | | ?????????????????# #?#" " """#???????????????? | | ?????????????????# #?# """""#???????????????? | | ????????????????## ### " """"#???????????????? | | ????????????????#" """"#???????????????? | | ????????????????#" """#???????????????? | | ????????????????#" """#???????????????? | | ????????????????#" """#???????????????? | | ????????????????#" """#???????????????? | | ????????????????#" @ """##??????????????? | | ????????????????## % """""??????????????? | | ????????????????#; """##??????????????? | | ??????????????# """""??????????????? | | ?????????????# " # ??????????????? | | ????????????# """"""#???????????????? | | ????????????# ;#######???????????????? | | ????????????# ;; ?????????????????????? | | ?????????????#;; #?????????????????????? | | ?????????????""" #?????????????????????? | | ???????????"" " "" g ; #??#####?##???????????? | | ???????????"" " ;;###"""""""""??????????? | | ?????????? " " """ """"#????????? | | ???????? "" " ????????? | | ???????? " """#???????? | | ???????? " "#???????? | | ???????? " "##??????? | | ????????? ""###????? | | ????????? """""" """#????? | | ?????????? ######""" "#????# | | ?????????? ""#?????#####""" ##???# | | ???????????????????????##""" ##?## | | ????????????????????????#"""" ### | | ????????????????????????#"" | | ???????????????????????#"""" | +----------------------------------------------------+ Best States ------------- Heat Dissipation 38 Energy Generation 14 Energy Capacity 280 Matter Stores 300 Matter Capacity 300 Sight Range 16 Terrain Scan Density 10 Evasion (%) 44 Armor Integrity Analysis 33 Recoil Reduction 3 Item Schematics ----------------- None Robot Schematics ------------------ None Fabricated ------------ Nothing Alien Tech Used ----------------- None Achievements -------------- None Challenges ------------ None Game ------ Seed WaveRefinerySink Manual? 0 Play Time 00:15:53 Cumulative 48.8 hours Start 2020.09.17 @ 10:15:25 End 2020.09.18 @ 09:07:57 Sessions 3 Manual Loads 0 Difficulty Rogue Special Mode None Game No. 92 Rogue 92 Adventurer 0 Explorer 0 Win Type - Total 0 Types 0/0/0/0/0/0/0/0/0 Lore% 41 Gallery% 51 Achievement% 37 Wizard Run 0 Options --------- ASCII 1 Keyboard 1 Movement Numpad Keybinds 0 Fullscreen 1 Font 18/X11 Map View 76x50 Tactical HUD 1 Map Filters NONE Filters NONE Steam 1 RUN: d38ff8cd-aabd-43d2-9832-168397d8cfc7